fUSD/lending_fUSD_20260616
["ID","MTS","AMOUNT","RATE_DAILY","PERIOD"]
[425215717,1781607039000,-706.28807274,0.000125,2]
[425215704,1781607039000,-220.08225,0.0001237,2]
[425215690,1781607039000,-979.094373,0.00011781,2]
[425215702,1781607039000,-500.0,0.00012226,2]
[425215725,1781607039000,-747.71611639,0.000125,2]
[425215681,1781607039000,-5163.85400711,0.00011699,2]
[425215683,1781607039000,-1907.6423464,0.00011748,2]
[425215682,1781607039000,-3122.67289389,0.000117,2]
[425215685,1781607039000,-1180.28263301,0.00011777,2]
[425215684,1781607039000,-4794.3532854,0.00011748,2]
[425215686,1781607039000,-300.0,0.0001178,2]
[425215688,1781607039000,-325.9944543,0.0001178,2]
[425215687,1781607039000,-300.0,0.0001178,2]
[425215689,1781607039000,-130613.2190292,0.00011781,2]
[425215692,1781607039000,-350.55395211,0.00011799,2]
[425215691,1781607039000,-197615.0,0.00011781,2]
[425215693,1781607039000,-5400.0,0.000119,4]
[425215694,1781607039000,-151.0,0.00011936,2]
[425215695,1781607039000,-151.0,0.00011937,2]
[425215697,1781607039000,-439.30643699,0.00011999,2]
[425215698,1781607039000,-594.396,0.00011999,2]
[425215696,1781607039000,-74203.11,0.00011975,2]
[425215699,1781607039000,-8129.55,0.00012055,2]
[425215701,1781607039000,-3335.4185021,0.00012172,2]
[425215700,1781607039000,-350.0,0.00012056,2]
[425215705,1781607039000,-220.08225,0.0001237,2]
[425215726,1781607039000,-611.25905665,0.000125,2]
[425215748,1781607039000,-500.0,0.000125,2]
[425215723,1781607039000,-521.58166708,0.000125,2]
[425215755,1781607039000,-220.08226,0.000125,2]
[425215729,1781607039000,-1170.49891234,0.000125,2]
[425215767,1781607039000,-462.0,0.0001253,5]
[425215756,1781607039000,-220.08225,0.000125,2]
[425215760,1781607039000,-747.71611639,0.000125,2]
[425215765,1781607039000,-747.71611639,0.00012501,2]
[425215766,1781607039000,-839.78671511,0.00012515,2]
[425215761,1781607039000,-571.44767164,0.000125,2]
[425215762,1781607039000,-916.01418994,0.000125,2]
[425215754,1781607039000,-475.2312122,0.000125,2]
[425215763,1781607039000,-916.01418994,0.000125,2]
[425215768,1781607039000,-521.58166708,0.00012531,2]
[425215770,1781607039000,-521.58166708,0.00012551,2]
[425215772,1781607039000,-376.490363,0.00012556,2]
[425215773,1781607039000,-145.09130408,0.00012556,2]
[425215774,1781607039000,-747.71611639,0.00012562,2]
[425215769,1781607039000,-199.5,0.00012543,2]
[425215775,1781607039000,-327.97281755,0.00012632,2]
[425215771,1781607039000,-804.15348108,0.00012555,2]
[425215776,1781607039000,-2142.76,0.00012632,2]
[425215764,1781607039000,-916.01418994,0.000125,2]
[425215753,1781607039000,-802.0,0.000125,2]
[425215758,1781607039000,-747.71611639,0.000125,2]
[425215751,1781607039000,-500.0,0.000125,2]
[425215728,1781607039000,-10000.0,0.000125,2]
[425215730,1781607039000,-656.48310526,0.000125,2]
[425215732,1781607039000,-500.0,0.000125,2]
[425215731,1781607039000,-500.0,0.000125,2]
[425215733,1781607039000,-500.0,0.000125,2]
[425215734,1781607039000,-500.0,0.000125,2]
[425215749,1781607039000,-500.0,0.000125,2]
[425215737,1781607039000,-500.0,0.000125,2]
[425215738,1781607039000,-500.0,0.000125,2]
[425215740,1781607039000,-500.0,0.000125,2]
[425215735,1781607039000,-500.0,0.000125,2]
[425215736,1781607039000,-500.0,0.000125,2]
[425215739,1781607039000,-500.0,0.000125,2]
[425215747,1781607039000,-500.0,0.000125,2]
[425215750,1781607039000,-500.0,0.000125,2]
[425215744,1781607039000,-500.0,0.000125,2]
[425215752,1781607039000,-500.0,0.000125,2]
[425215745,1781607039000,-500.0,0.000125,2]
[425215743,1781607039000,-500.0,0.000125,2]
[425215742,1781607039000,-500.0,0.000125,2]
[425215741,1781607039000,-500.0,0.000125,2]
[425215746,1781607039000,-500.0,0.000125,2]
[425215777,1781607040000,-916.01418994,0.00012507,2]
[425215784,1781607040000,-150.0,0.00012632,2]
[425215779,1781607040000,-940.10294055,0.00012632,2]
[425215780,1781607040000,-418.89705945,0.00012632,2]
[425215782,1781607040000,-383.0,0.00012632,2]
[425215781,1781607040000,-1275.0,0.00012632,2]
[425215783,1781607040000,-1228.0,0.00012632,2]
[425215785,1781607040000,-150.0,0.00012632,2]
[425215778,1781607040000,-1087.26718245,0.00012632,2]
[425215787,1781607040000,-934.0,0.00012632,2]
[425215786,1781607040000,-419.0,0.00012632,2]
[425215795,1781607040000,-512.54,0.00012829,2]
[425215791,1781607040000,-372.0,0.00012781,5]
[425215792,1781607040000,-535.46394215,0.00012792,2]
[425215794,1781607040000,-65.33896733,0.00012829,2]
[425215793,1781607040000,-8100.0,0.000128,4]
[425215789,1781607040000,-151.0,0.00012687,2]
[425215788,1781607040000,-200.0,0.00012676,2]
[425215790,1781607040000,-151.92,0.00012773,2]
[425215811,1781607045000,-6915.39601646,0.0001288,2]
[425215812,1781607045000,-14654.40038179,0.0001288,2]
[425215810,1781607045000,-334.86534023,0.00012876,2]
[425215806,1781607045000,-835.55,0.00012017,2]
[425215809,1781607045000,-500.0,0.00012876,2]
[425215807,1781607045000,-916.01418994,0.000125,2]
[425215805,1781607045000,-1000.73173716,0.00011681,2]
[425215808,1781607045000,-2757.53953477,0.00012829,2]
[425215816,1781607046000,-397.75950976,0.0001288,2]
[425215815,1781607046000,-1804.40609282,0.0001288,2]
[425215813,1781607046000,-676.29360175,0.0001288,2]
[425215814,1781607046000,-246.70639825,0.0001288,2]
[425215861,1781607203000,259.72,0.00030082,120]
[425215862,1781607234000,272.8,0.0003001,120]
[425215863,1781607394000,230.0,0.0003,120]
[425215865,1781607536000,-151.0,0.00016177,30]
[425215866,1781607607000,1000.0,0.0003013,120]
[425215867,1781607642000,246.7,0.0003013,120]
[425215868,1781607690000,188.97,0.00030092,120]
[425215869,1781607825000,1541.4,0.00029452,120]
[425215870,1781607908000,165.56550152,0.0003011,120]
[425215871,1781607968000,341.07951526,0.0003011,120]
[425215872,1781608028000,187.5937334,0.0003011,120]
[425215873,1781608062000,1000.0,0.00030136,120]
[425215874,1781608165000,173.85292853,0.00022781,120]
[425215875,1781608229000,2959.4241333,0.00030136,120]
[425215877,1781608232000,-250.0,7.613e-05,2]
[425215876,1781608232000,-269.12051671,7.602e-05,2]
[425215878,1781608232000,-36.90385163,7.624e-05,2]
[425215881,1781608232000,-434.32548108,7.985e-05,2]
[425215883,1781608232000,-192.05765625,7.985e-05,2]
[425215884,1781608232000,-76.897942,7.985e-05,2]
[425215880,1781608232000,-150.0,7.985e-05,2]
[425215882,1781608232000,-307.94234375,7.985e-05,2]
[425215879,1781608232000,-113.09614837,7.624e-05,2]
[425215896,1781608238000,-2490.14738835,8e-05,2]
[425215895,1781608238000,-258.2306352,7.985e-05,2]
[425215915,1781608239000,-433.0,9.662e-05,2]
[425215913,1781608239000,-5000.0,9.079e-05,2]
[425215917,1781608239000,-150.0,9.67e-05,2]
[425215910,1781608239000,-151.0,8.775e-05,2]
[425215912,1781608239000,-619.03641665,9.069e-05,2]
[425215911,1781608239000,-255.0,8.784e-05,2]
[425215909,1781608239000,-300.0,8.362e-05,2]
[425215907,1781608239000,-300.0,8.362e-05,2]
[425215904,1781608239000,-250.0,8.362e-05,2]
[425215903,1781608239000,-88.44177293,8.219e-05,2]
[425215906,1781608239000,-94.92775317,8.362e-05,2]
[425215902,1781608239000,-353.95762007,8.219e-05,2]
[425215899,1781608239000,-216.13448155,8.001e-05,2]
[425215900,1781608239000,-500.0,8.219e-05,2]
[425215898,1781608239000,-596.60577357,8e-05,2]
[425215901,1781608239000,-500.0,8.219e-05,2]
[425215897,1781608239000,-1206.80961444,8e-05,2]
[425215916,1781608239000,-150.0,9.67e-05,2]
[425215905,1781608239000,-155.07224683,8.362e-05,2]
[425215914,1781608239000,-160.0,9.513e-05,2]
[425215908,1781608239000,-300.0,8.362e-05,2]
[425215919,1781608239000,-150.0,9.67e-05,2]
[425215918,1781608239000,-150.0,9.67e-05,2]
[425215944,1781608239000,-1391.49064011,9.861e-05,2]
[425215939,1781608239000,-70.2588824,9.861e-05,2]
[425215931,1781608239000,-200.0,9.815e-05,2]
[425215935,1781608239000,-1550.68313241,9.861e-05,2]
[425215933,1781608239000,-8041.76713099,9.861e-05,2]
[425215934,1781608239000,-4733.66554891,9.861e-05,2]
[425215929,1781608239000,-2000.0,9.749e-05,2]
[425215930,1781608239000,-1852.42,9.759e-05,2]
[425215932,1781608239000,-753.27,9.815e-05,2]
[425215927,1781608239000,-1310.27,9.672e-05,2]
[425215945,1781608239000,-680.50293505,9.861e-05,2]
[425215926,1781608239000,-419.0,9.67e-05,2]
[425215923,1781608239000,-1359.0,9.67e-05,2]
[425215920,1781608239000,-3558.0,9.67e-05,2]
[425215924,1781608239000,-1228.0,9.67e-05,2]
[425215925,1781608239000,-3646.0,9.67e-05,2]
[425215922,1781608239000,-383.0,9.67e-05,2]
[425215928,1781608239000,-1933.25,9.749e-05,2]
[425215921,1781608239000,-1275.0,9.67e-05,2]
[425215965,1781608240000,-614.33,0.00010323,2]
[425215960,1781608240000,-2602.48,9.876e-05,2]
[425215964,1781608240000,-2054.1,0.00010271,2]
[425215959,1781608240000,-242.11,9.872e-05,2]
[425215961,1781608240000,-1600.0,9.879e-05,2]
[425215963,1781608240000,-166.66,0.00010109,2]
[425215967,1781608240000,-152.0,0.000104,2]
[425215962,1781608240000,-614.33,0.00010072,2]
[425215969,1781608240000,-1000.0,0.00010429,2]
[425215958,1781608240000,-559.69173013,9.861e-05,2]
[425215968,1781608240000,-151.0,0.000104,2]
[425215972,1781608240000,-2500.0,0.00010536,2]
[425215970,1781608240000,-197.06853256,0.00010455,2]
[425215971,1781608240000,-166.66,0.00010526,2]
[425215974,1781608240000,-500.0,0.00010628,2]
[425215973,1781608240000,-614.33,0.00010575,2]
[425215975,1781608240000,-501.0,0.00010628,2]
[425215978,1781608240000,-3720.49673213,0.00010636,2]
[425215977,1781608240000,-5903.91300518,0.00010636,2]
[425215979,1781608240000,-262.15000001,0.00010636,2]
[425215966,1781608240000,-250.0,0.000104,2]
[425215991,1781608243000,-1161.0,0.00010636,2]
[425215992,1781608243000,-16782.94026268,0.00010636,2]
[425215994,1781608243000,-500.0,0.00010685,2]
[425215993,1781608243000,-500.0,0.00010685,2]
[425215996,1781608243000,-1.74907495,0.00010685,2]
[425215995,1781608243000,-498.25092505,0.00010685,2]
[425215997,1781608243000,-468.64192608,0.00010685,2]
[425216058,1781608246000,-614.33,0.00011079,2]
[425216054,1781608246000,-511.39,0.00011,2]
[425216049,1781608246000,-166.66,0.00010959,2]
[425216060,1781608246000,-1228.83219835,0.00011099,2]
[425216056,1781608246000,-166.66,0.00011068,2]
[425216067,1781608246000,-166.66,0.00011178,2]
[425216065,1781608246000,-1600.0,0.00011114,2]
[425216073,1781608246000,-166.66,0.00011397,2]
[425216072,1781608246000,-166.66,0.00011361,2]
[425216070,1781608246000,-166.66,0.00011288,2]
[425216074,1781608246000,-339.0,0.00011479,2]
[425216052,1781608246000,-2000.0,0.00010968,2]
[425216081,1781608246000,-515710.2310758,0.00011914,2]
[425216050,1781608246000,-150.0,0.00010959,2]
[425216038,1781608246000,-50.08688577,0.00010685,2]
[425216047,1781608246000,-166.66,0.00010944,2]
[425216043,1781608246000,-206.38519936,0.00010685,2]
[425216044,1781608246000,-614.33,0.00010827,2]
[425216046,1781608246000,-500.0,0.00010902,2]
[425216045,1781608246000,-1000.0,0.00010859,2]
[425216042,1781608246000,-150.0,0.00010685,2]
[425216040,1781608246000,-150.0,0.00010685,2]
[425216041,1781608246000,-150.0,0.00010685,2]
[425216039,1781608246000,-150.0,0.00010685,2]
[425216037,1781608246000,-99.91311423,0.00010685,2]
[425216036,1781608246000,-211.15540493,0.00010685,2]
[425216035,1781608246000,-305.32154556,0.00010685,2]
[425216034,1781608246000,-31.35807392,0.00010685,2]
[425216048,1781608246000,-150.0,0.00010959,2]
[425216078,1781608246000,-2700.0,0.000119,4]
[425216069,1781608246000,-152.63,0.00011233,2]
[425216071,1781608246000,-400.22255387,0.0001135,2]
[425216097,1781608246000,-318.0,0.00012017,2]
[425216098,1781608246000,-8129.55,0.00012055,2]
[425216102,1781608246000,-11339.8,0.00012087,2]
[425216104,1781608246000,-6034.76,0.00012087,2]
[425216103,1781608246000,-299.99,0.00012087,2]
[425216100,1781608246000,-9999.99,0.00012087,2]
[425216107,1781608246000,-259.72,0.00012329,2]
[425216101,1781608246000,-999.99,0.00012087,2]
[425216108,1781608246000,-1600.0,0.00012349,2]
[425216111,1781608246000,-2787.31175772,0.0001235,2]
[425216110,1781608246000,-1863.25079641,0.0001235,2]
[425216113,1781608246000,-916.01418994,0.000125,2]
[425216112,1781608246000,-1228.83219831,0.00012479,2]
[425216079,1781608246000,-3000.0,0.000119,2]
[425216109,1781608246000,-1056.1936518,0.0001235,2]
[425216096,1781608246000,-2661.88,0.00012,2]
[425216063,1781608246000,-1228.83219831,0.00011099,2]
[425216106,1781608246000,-2000.0,0.00012186,2]
[425216076,1781608246000,-1228.83219831,0.00011511,2]
[425216080,1781608246000,-250.0,0.000119,2]
[425216077,1781608246000,-166.66,0.00011778,2]
[425216083,1781608246000,-1907.6423465,0.00011914,2]
[425216094,1781608246000,-151.0,0.00011937,2]
[425216092,1781608246000,-1958.188746,0.00011915,2]
[425216099,1781608246000,-270.0,0.00012087,5]
[425216075,1781608246000,-166.66,0.00011507,2]
[425216082,1781608246000,-5265.0881472,0.00011914,2]
[425216084,1781608246000,-234097.98463225,0.00011914,2]
[425216088,1781608246000,-31289.99035325,0.00011914,2]
[425216090,1781608246000,-31658.5741661,0.00011915,2]
[425216105,1781608246000,-150.99,0.00012087,2]
[425216095,1781608246000,-1228.83219831,0.00011995,2]
[425216118,1781608247000,-10000.0,0.000125,2]
[425216119,1781608247000,-15000.0,0.000125,2]
[425216116,1781608247000,-6111.0,0.000125,2]
[425216114,1781608247000,-916.01418994,0.000125,2]
[425216117,1781608247000,-3733.021,0.000125,2]
[425216120,1781608247000,-169.263,0.00012501,2]
[425216121,1781608247000,-572.36141553,0.0001252,2]
[425216123,1781608247000,-4335.6358928,0.00012551,2]
[425216115,1781608247000,-6111.0,0.000125,2]
[425216122,1781608247000,-15000.0,0.00012548,2]
[425216124,1781608291000,1500.0,0.0003013,120]
[425216127,1781608434000,467.0,0.00030137,120]
[425216128,1781608493000,154.54217104,0.00030136,120]
[425216129,1781608647000,173.14,0.00030082,120]
[425216130,1781608656000,317.1,0.0003,120]
[425216132,1781608897000,2802.67112573,0.0003013,120]
[425216133,1781609033000,302.94,0.0003,120]
[425216134,1781609035000,157.0,0.00030137,120]
[425216135,1781609108000,262.25495272,0.0003011,120]
[425216136,1781609157000,1000.0,0.0003,120]
[425216137,1781609168000,303.05959003,0.0003011,120]
[425216138,1781609228000,173.96902264,0.0003011,120]
[425216139,1781609242000,1032.0,0.0003013,120]
[425216141,1781609379000,201.0,0.00030136,120]
[425216157,1781609432000,-500.0,7.878e-05,2]
[425216158,1781609432000,-500.0,7.878e-05,2]
[425216160,1781609432000,-500.0,7.878e-05,2]
[425216159,1781609432000,-500.0,7.878e-05,2]
[425216162,1781609432000,-500.0,7.878e-05,2]
[425216176,1781609432000,-162.12736552,7.882e-05,2]
[425216165,1781609432000,-500.0,7.878e-05,2]
[425216164,1781609432000,-500.0,7.878e-05,2]
[425216178,1781609432000,-3271.854,7.885e-05,2]
[425216142,1781609432000,-183.05,7.434e-05,2]
[425216161,1781609432000,-500.0,7.878e-05,2]
[425216156,1781609432000,-500.0,7.878e-05,2]
[425216155,1781609432000,-500.0,7.878e-05,2]
[425216153,1781609432000,-500.0,7.878e-05,2]
[425216149,1781609432000,-82545.62310295,7.786e-05,2]
[425216151,1781609432000,-500.0,7.878e-05,2]
[425216150,1781609432000,-150.0,7.877e-05,2]
[425216152,1781609432000,-500.0,7.878e-05,2]
[425216147,1781609432000,-3368.77717744,7.786e-05,2]
[425216148,1781609432000,-378.71365915,7.786e-05,2]
[425216146,1781609432000,-642.29822088,7.786e-05,2]
[425216145,1781609432000,-1318.52243958,7.786e-05,2]
[425216144,1781609432000,-150.0,7.653e-05,2]
[425216143,1781609432000,-250.0,7.544e-05,2]
[425216154,1781609432000,-500.0,7.878e-05,2]
[425216166,1781609432000,-500.0,7.878e-05,2]
[425216163,1781609432000,-500.0,7.878e-05,2]
[425216183,1781609432000,-250.0,8.178e-05,2]
[425216180,1781609432000,-172.597,7.885e-05,2]
[425216230,1781609432000,-292.97700002,9.45e-05,2]
[425216227,1781609432000,-966.4698738,9.45e-05,2]
[425216224,1781609432000,-797.59445327,9.45e-05,2]
[425216222,1781609432000,-1466.83551856,9.45e-05,2]
[425216219,1781609432000,-980.68160655,9.45e-05,2]
[425216217,1781609432000,-15963.03515663,9.45e-05,2]
[425216215,1781609432000,-3646.0,9.425e-05,2]
[425216212,1781609432000,-1228.0,9.425e-05,2]
[425216210,1781609432000,-1359.0,9.425e-05,2]
[425216209,1781609432000,-383.0,9.425e-05,2]
[425216207,1781609432000,-1275.0,9.425e-05,2]
[425216200,1781609432000,-1000.0,8.88e-05,2]
[425216167,1781609432000,-415.32835681,7.878e-05,2]
[425216192,1781609432000,-443.44984548,8.219e-05,2]
[425216198,1781609432000,-500.0,8.219e-05,2]
[425216182,1781609432000,-216.13448155,7.922e-05,2]
[425216170,1781609432000,-500.0,7.882e-05,2]
[425216172,1781609432000,-184.33097204,7.882e-05,2]
[425216196,1781609432000,-500.0,8.219e-05,2]
[425216174,1781609432000,-500.0,7.882e-05,2]
[425216188,1781609432000,-500.0,8.219e-05,2]
[425216194,1781609432000,-500.0,8.219e-05,2]
[425216190,1781609432000,-500.0,8.219e-05,2]
[425216203,1781609432000,-545.65,9.033e-05,2]
[425216205,1781609432000,-2000.0,9.329e-05,2]
[425216186,1781609432000,-1300.219379,8.178e-05,2]
[425216309,1781609440000,-166.66,0.00011068,2]
[425216304,1781609440000,-4000.0,0.0001103,2]
[425216299,1781609440000,-4000.0,0.00010779,2]
[425216301,1781609440000,-150.0,0.00010959,2]
[425216300,1781609440000,-150.0,0.00010959,2]
[425216302,1781609440000,-166.66,0.00010959,2]
[425216295,1781609440000,-2000.0,0.00010495,2]
[425216305,1781609440000,-165.78,0.00011035,2]
[425216307,1781609440000,-1180.28263301,0.00011054,2]
[425216303,1781609440000,-212.0,0.0001096,5]
[425216312,1781609440000,-813.71586385,0.00011099,2]
[425216319,1781609440000,-166.66,0.00011507,2]
[425216310,1781609440000,-813.71586389,0.00011099,2]
[425216311,1781609440000,-813.71586385,0.00011099,2]
[425216298,1781609440000,-154.77155199,0.00010685,2]
[425216313,1781609440000,-460.25,0.000111,2]
[425216315,1781609440000,-166.66,0.00011288,2]
[425216318,1781609440000,-166.66,0.00011397,2]
[425216314,1781609440000,-166.66,0.00011178,2]
[425216316,1781609440000,-545.65,0.00011291,2]
[425216317,1781609440000,-813.71586385,0.00011332,2]
[425216322,1781609440000,-2698.27198206,0.00011855,2]
[425216320,1781609440000,-2000.0,0.00011661,2]
[425216297,1781609440000,-1254.41808677,0.00010685,2]
[425216288,1781609440000,-166.66,0.00010221,2]
[425216294,1781609440000,-350.55395211,0.00010285,2]
[425216333,1781609440000,-151.0,0.00011965,2]
[425216271,1781609440000,-3558.0,9.425e-05,2]
[425216272,1781609440000,-8184.95849212,9.45e-05,2]
[425216274,1781609440000,-850.6,9.505e-05,2]
[425216273,1781609440000,-12250.36789905,9.45e-05,2]
[425216276,1781609440000,-2600.0,9.8e-05,3]
[425216275,1781609440000,-200.0,9.698e-05,2]
[425216279,1781609440000,-205.50692769,0.0001,2]
[425216278,1781609440000,-5300.0,9.9e-05,3]
[425216280,1781609440000,-542.33603362,0.0001,2]
[425216296,1781609440000,-4000.0,0.00010529,2]
[425216277,1781609440000,-250.0,9.823e-05,2]
[425216293,1781609440000,-1180.28263307,0.00010285,2]
[425216282,1781609440000,-1431.23337331,0.0001,2]
[425216285,1781609440000,-4000.0,0.00010027,2]
[425216284,1781609440000,-7900.0,0.0001,3]
[425216286,1781609440000,-545.65,0.00010162,2]
[425216287,1781609440000,-1558.32331287,0.000102,2]
[425216292,1781609440000,-4000.0,0.00010278,2]
[425216291,1781609440000,-2500.0,0.00010276,2]
[425216289,1781609440000,-33294.2563,0.00010276,2]
[425216290,1781609440000,-2000.0,0.00010276,2]
[425216281,1781609440000,-956.74504844,0.0001,2]
[425216283,1781609440000,-1936.5093,0.0001,2]
[425216334,1781609440000,-4889.5,0.00012055,2]
[425216327,1781609440000,-295206.4403941,0.00011955,2]
[425216379,1781609440000,-500.0,0.00012552,2]
[425216373,1781609440000,-500.0,0.00012552,2]
[425216371,1781609440000,-500.0,0.00012552,2]
[425216369,1781609440000,-10664.3641072,0.00012551,2]
[425216383,1781609440000,-500.0,0.00012552,2]
[425216381,1781609440000,-500.0,0.00012552,2]
[425216389,1781609440000,-500.0,0.00012552,2]
[425216385,1781609440000,-500.0,0.00012552,2]
[425216387,1781609440000,-500.0,0.00012552,2]
[425216402,1781609440000,-500.0,0.00012552,2]
[425216393,1781609440000,-500.0,0.00012552,2]
[425216391,1781609440000,-500.0,0.00012552,2]
[425216408,1781609440000,-500.0,0.00012552,2]
[425216399,1781609440000,-500.0,0.00012552,2]
[425216397,1781609440000,-500.0,0.00012552,2]
[425216395,1781609440000,-500.0,0.00012552,2]
[425216405,1781609440000,-500.0,0.00012552,2]
[425216414,1781609440000,-500.0,0.00012552,2]
[425216412,1781609440000,-500.0,0.00012552,2]
[425216418,1781609440000,-802.0,0.00012552,2]
[425216416,1781609440000,-500.0,0.00012552,2]
[425216410,1781609440000,-500.0,0.00012552,2]
[425216420,1781609440000,-2049.68784197,0.00012552,2]
[425216377,1781609440000,-500.0,0.00012552,2]
[425216375,1781609440000,-500.0,0.00012552,2]
[425216321,1781609440000,-1180.28263301,0.00011823,2]
[425216363,1781609440000,-1522.9725446,0.000125,2]
[425216324,1781609440000,-300.0,0.00011954,2]
[425216325,1781609440000,-300.0,0.00011954,2]
[425216329,1781609440000,-6787.6921819,0.00011955,2]
[425216323,1781609440000,-813.71586385,0.0001191,2]
[425216326,1781609440000,-325.9944543,0.00011954,2]
[425216331,1781609440000,-110569.8028353,0.00011955,2]
[425216328,1781609440000,-7532.8594476,0.00011955,2]
[425216335,1781609440000,-398.0,0.00012196,2]
[425216346,1781609440000,-545.65,0.0001242,2]
[425216337,1781609440000,-416.0,0.00012266,2]
[425216352,1781609440000,-1359.0,0.00012425,2]
[425216367,1781609440000,-200.0,0.00012543,2]
[425216344,1781609440000,-250.0,0.00012375,2]
[425216348,1781609440000,-1275.0,0.00012425,2]
[425216350,1781609440000,-383.0,0.00012425,2]
[425216356,1781609440000,-3646.0,0.00012425,2]
[425216342,1781609440000,-398.0,0.00012337,2]
[425216336,1781609440000,-398.0,0.00012249,2]
[425216338,1781609440000,-2698.271982,0.0001229,2]
[425216340,1781609440000,-173.14,0.00012329,2]
[425216360,1781609440000,-813.71586385,0.00012488,2]
[425216358,1781609440000,-3558.0,0.00012425,2]
[425216365,1781609440000,-163.44944638,0.000125,2]
[425216354,1781609440000,-1228.0,0.00012425,2]
[425216432,1781609441000,-500.22722923,0.00012552,2]
[425216425,1781609441000,-3653.7485377,0.00012552,2]
[425216429,1781609441000,-1815.48527078,0.00012552,2]
[425216435,1781609441000,-1007.20313469,0.00012552,2]
[425216502,1781609446000,-841.85517712,0.00012554,2]
[425216506,1781609446000,-1997.16859202,0.00012622,2]
[425216503,1781609446000,-5269.14482288,0.00012554,2]
[425216505,1781609446000,-350.55395209,0.00012593,2]
[425216504,1781609446000,-1180.28263301,0.00012593,2]
[425216500,1781609446000,-151.0,0.00011936,2]
[425216501,1781609446000,-1578.16911171,0.00012552,2]
[425216510,1781609528000,277.30004494,0.0003011,120]
[425216512,1781609573000,260.705591,0.000301,120]
[425216514,1781609588000,262.32584252,0.0003011,120]
[425216515,1781609593000,260.705591,0.000301,120]
[425216517,1781609662000,-168.8016,7.778e-05,2]
[425216518,1781609663000,248.16024702,0.0003011,120]
[425216519,1781609708000,190.90693619,0.0003011,120]
[425216520,1781609769000,-250.0,8.556e-05,2]
[425216522,1781609789000,2000.0,0.00030077,120]
[425216521,1781609789000,2000.0,0.00030077,120]
[425216526,1781609790000,784.35,0.00030106,120]
[425216525,1781609790000,2000.0,0.00030106,120]
[425216524,1781609790000,682.43,0.00030077,120]
[425216523,1781609790000,2000.0,0.00030077,120]
[425216527,1781609876000,-500.0,9.162e-05,2]
[425216528,1781609932000,2000.0,0.00030077,120]
[425216531,1781609933000,2000.0,0.000301,120]
[425216530,1781609933000,1306.45,0.00030077,120]
[425216529,1781609933000,2000.0,0.00030077,120]
[425216532,1781609934000,211.02,0.000301,120]
[425216534,1781609936000,1479.83,0.00030077,120]
[425216533,1781609936000,3000.0,0.00030077,120]
[425216535,1781609936000,1866.6,0.000301,120]
[425216536,1781610083000,-344.62775157,9.151e-05,2]
[425216537,1781610108000,-387.13122147,9.162e-05,2]
[425216539,1781610109000,578.07,0.00030099,120]
[425216538,1781610109000,1387.36,0.00030077,120]
[425216540,1781610294000,-1790.38782439,9.163e-05,2]
[425216541,1781610401000,-1815.48527078,9.163e-05,2]
[425216542,1781610428000,-801.99772922,9.163e-05,2]
[425216544,1781610632000,-1800.0,8.9e-05,3]
[425216545,1781610632000,-241.56008469,8.95e-05,2]
[425216547,1781610632000,-3700.0,9e-05,3]
[425216550,1781610632000,-172.598,9.163e-05,2]
[425216558,1781610632000,-500.0,9.249e-05,2]
[425216546,1781610632000,-331.54794334,8.999e-05,2]
[425216557,1781610632000,-500.0,9.249e-05,2]
[425216553,1781610632000,-500.0,9.249e-05,2]
[425216548,1781610632000,-1193.59188292,9e-05,2]
[425216560,1781610632000,-560.41489184,9.249e-05,2]
[425216555,1781610632000,-313.48915586,9.249e-05,2]
[425216549,1781610632000,-1193.59188291,9.162e-05,2]